[Event "British Championship 2024"]
[Site "Hull"]
[Date "2024.07.31"]
[Round "4.14"]
[White "Hebden, Mark L"]
[Black "Hobson, Kenneth"]
[Result "1-0"]
[Annotator "RC"]
[ECO "E51"]
[WhiteElo "2398"]
[BlackElo "2227"]
[PlyCount "69"]
[EventDate "2024.07.31"]
[EventCountry "GBR"]
[SourceTitle "playchess.com"]
[Source "ChessBase"]
[SourceQuality "1"]
[TimeControl "40/5400+30:1800+30"]

1. Nf3 {[%emt 0:00:29]} Nf6 {[%emt 0:00:31]} 2. c4 {[%emt 0:00:52]} e6 {[%emt 0:01:05]} 3. Nc3 {[%emt 0:00:39]} d5 {[%emt 0:01:03]} 4. e3 {[%emt 0:01:09]} Bb4 {[%emt 0:02:26]} 5. Qc2 {[%emt 0:06:48]} O-O {[%emt 0:02:21]} 6. a3 {[%emt 0:03:24]} Be7 {[%emt 0:04:02]} 7. d4 {[%emt 0:01:39]} b6 {[%emt 0:04:40]} 8. cxd5 {[%emt 0:03:34]} exd5 {[%emt 0:00:14]} 9. Be2 {[%emt 0:01:34]} Ba6 {[%emt 0:06:15]} 10. Bxa6 {[%emt 0:04:07]} Nxa6 {[%emt 0:00:05]} 11. O-O {[%emt 0:00:14]} c5 {[%emt 0:05:41]} 12. Rd1 {[%emt 0:00:28]} c4 {[%emt 0:06:18]} 13. b3 {[%emt 0:01:31]} Rc8 {[%emt 0:03:46]} 14. bxc4 {[%emt 0:00:45]} Rxc4 {[%emt 0:00:10]} 15. Ne5 {[%emt 0:05:25]} Rc8 {[%emt 0:01:59]} 16. Qb3 {[%emt 0:03:11]} Nb8 {[%emt 0:07:36]} 17. a4 {[%emt 0:02:10]} Nc6 {[%emt 0:01:33]} 18. Bd2 {[%emt 0:03:47]} Na5 {[%emt 0:08:28]} 19. Qb5 {[%emt 0:00:50]} Nc4 {[%emt 0:01:31]} 20. Nc6 {[%emt 0:07:20]} a6 {[%emt 0:08:06]} 21. Nxe7+ {[%emt 0:00:23]} Kh8 {[%emt 0:01:22]} 22. Qxa6 {[%emt 0:03:29]} Qxe7 {[%emt 0:00:15]} 23. Be1 {[%emt 0:06:04]} Rfe8 {[%emt 0:05:59]} 24. Qb5 {[%emt 0:03:19]} Qd6 {[%emt 0:00:29]} 25. h3 {[%emt 0:00:51]} g5 {[%emt 0:00:53]} 26. Rac1 {[%emt 0:05:36]} g4 {[%emt 0:04:08]} 27. hxg4 {[%emt 0:04:34]} Nxg4 {[%emt 0:00:29]} 28. Nxd5 {[%emt 0:00:35]} Qh2+ {[%emt 0:02:18]} 29. Kf1 {[%emt 0:00:06]} Qh1+ {[%emt 0:11:32]} 30. Ke2 {[%emt 0:00:07]} Nd6 {[%emt 0:03:54]} 31. Qd7 {[%emt 0:05:13]} Qxg2 {[%emt 0:03:44]} 32. Rxc8 {[%emt 0:01:15]} Rxc8 {[%emt 0:00:03]} 33. Qxd6 {[%emt 0:00:20]} Qe4 {[%emt 0:00:51]} 34. Rc1 {[%emt 0:02:42]} Rc2+ {[%emt 0:00:32]} 35. Bd2 {[%emt 0:02:00]} 1-0

[Event "British Championship 2024"]
[Site "Hull"]
[Date "2024.07.31"]
[Round "4.15"]
[White "Van Zyl-Rudd, Jack"]
[Black "Kanyamarala, Tarun"]
[Result "0-1"]
[Annotator "RC"]
[ECO "D35"]
[WhiteElo "2292"]
[BlackElo "2333"]
[PlyCount "114"]
[EventDate "2024.07.31"]
[EventCountry "GBR"]
[SourceTitle "playchess.com"]
[Source "ChessBase"]
[SourceQuality "1"]
[TimeControl "40/5400+30:1800+30"]

1. d4 {[%emt 0:00:01]} Nf6 {[%emt 0:00:09]} 2. c4 {[%emt 0:00:05]} e6 {[%emt 0:00:07]} 3. Nf3 {[%emt 0:00:04]} d5 {[%emt 0:00:09]} 4. cxd5 {[%emt 0:00:05]} exd5 {[%emt 0:00:07]} 5. Nc3 {[%emt 0:00:03]} c6 {[%emt 0:00:15]} 6. Bg5 {[%emt 0:00:09]} h6 {[%emt 0:00:09]} 7. Bh4 {[%emt 0:00:04]} Bf5 {[%emt 0:00:15]} 8. e3 {[%emt 0:00:05]} Nbd7 {[%emt 0:00:15]} 9. Bd3 {[%emt 0:00:06]} Bxd3 {[%emt 0:00:10]} 10. Qxd3 {[%emt 0:00:05]} Bd6 {[%emt 0:00:11]} 11. O-O {[%emt 0:00:07]} O-O {[%emt 0:00:11]} 12. Rab1 {[%emt 0:00:07]} Qe7 {[%emt 0:00:15]} 13. Rfe1 {[%emt 0:01:17]} Qe6 {[%emt 0:01:49]} 14. b4 {[%emt 0:00:38]} b5 {[%emt 0:02:03]} 15. a4 {[%emt 0:01:46]} a5 {[%emt 0:06:41]} 16. axb5 {[%emt 0:01:14]} axb4 {[%emt 0:02:41]} 17. bxc6 {[%emt 0:00:07]} Ra3 {[%emt 0:00:45]} 18. cxd7 {[%emt 0:00:07]} Rxc3 {[%emt 0:00:47]} 19. Qb5 {[%emt 0:00:34]} Nxd7 {[%emt 0:12:10]} 20. Nd2 {[%emt 0:01:06]} Rb8 {[%emt 0:01:01]} 21. Qa4 {[%emt 0:00:35]} Nb6 {[%emt 0:04:07]} 22. Qd1 {[%emt 0:00:48]} Nc4 {[%emt 0:07:06]} 23. Nb3 {[%emt 0:02:16]} Na3 {[%emt 0:13:34]} 24. Rb2 {[%emt 0:00:10]} Rbc8 {[%emt 0:03:34]} 25. Bg3 {[%emt 0:01:23]} Bf8 {[%emt 0:04:12]} 26. Nc5 {[%emt 0:02:21]} Bxc5 {[%emt 0:01:53]} 27. dxc5 {[%emt 0:00:06]} R3xc5 {[%emt 0:00:32]} 28. h3 {[%emt 0:01:50]} Nc2 {[%emt 0:13:11]} 29. Rf1 {[%emt 0:00:06]} Rc3 {[%emt 0:02:57]} 30. Qd2 {[%emt 0:01:00]} R8c6 {[%emt 0:06:02]} 31. Rd1 {[%emt 0:00:29]} R6c5 {[%emt 0:01:07]} 32. Kh2 {[%emt 0:02:27]} Qf6 {[%emt 0:09:55]} 33. Rdb1 {[%emt 0:01:37]} Na3 {[%emt 0:01:40]} 34. Rxb4 {[%emt 0:00:06]} Nxb1 {[%emt 0:00:08]} 35. Rxb1 {[%emt 0:00:04]} Qe6 {[%emt 0:01:57]} 36. Rb7 {[%emt 0:01:03]} Rc8 {[%emt 0:01:40]} 37. Qd4 {[%emt 0:01:02]} R3c4 {[%emt 0:01:30]} 38. Qa7 {[%emt 0:00:31]} Re8 {[%emt 0:00:17]} 39. Rd7 {[%emt 0:00:38]} Rc6 {[%emt 0:03:29]} 40. Qb7 {[%emt 0:00:31]} Rec8 {[%emt 0:00:45]} 41. Re7 {[%emt 0:31:05]} Qf6 {[%emt 0:09:13]} 42. Qd7 {[%emt 0:00:00]} Rc1 {[%emt 0:01:27]} 43. Re5 {[%emt 0:00:00]} Rd8 {[%emt 0:00:32]} 44. Qg4 {[%emt 0:00:00]} Kh7 {[%emt 0:09:11]} 45. Rf5 {[%emt 0:00:00]} Qe6 {[%emt 0:01:54]} 46. Qf3 {[%emt 0:00:00]} f6 {[%emt 0:00:37]} 47. Rf4 {[%emt 0:00:00]} Rc4 {[%emt 0:00:27]} 48. Qd1 {[%emt 0:00:00]} Rxf4 {[%emt 0:01:15]} 49. Bxf4 {[%emt 0:00:00]} Qe4 {[%emt 0:00:26]} 50. Bc7 {[%emt 0:00:00]} Rc8 {[%emt 0:00:33]} 51. Bg3 {[%emt 0:00:00]} Rc2 {[%emt 0:01:14]} 52. f3 {[%emt 0:00:00]} Qc4 {[%emt 0:00:19]} 53. Bd6 {[%emt 0:00:00]} Kh8 {[%emt 0:01:59]} 54. Kg3 {[%emt 0:00:00]} Qa2 {[%emt 0:01:41]} 55. Qf1 {[%emt 0:00:00]} Qb3 {[%emt 0:02:15]} 56. Qe1 {[%emt 0:00:00]} Qb2 {[%emt 0:00:35]} 57. Qf1 {[%emt 0:00:00]} Qb6 {[%emt 0:00:27]} 0-1

[Event "British Championship 2024"]
[Site "Hull"]
[Date "2024.07.31"]
[Round "4.16"]
[White "Trent, Lawrence"]
[Black "Boswell, Jacob Connor"]
[Result "1/2-1/2"]
[Annotator "TA"]
[ECO "E60"]
[WhiteElo "2416"]
[BlackElo "2274"]
[PlyCount "28"]
[EventDate "2024.07.31"]
[EventCountry "GBR"]
[SourceTitle "playchess.com"]
[Source "ChessBase"]
[SourceQuality "1"]
[TimeControl "40/5400+30:1800+30"]

{[%evp 21,28,35,34,27,10,2,12,0,0]} 1. Nf3 {[%emt 0:02:45]} Nf6 {[%emt 0:02:40]} 2. g3 {[%emt 0:01:07]} g6 {[%emt 0:00:14]} 3. Bg2 {[%emt 0:00:16]} Bg7 {[%emt 0:00:14]} 4. b3 {[%emt 0:01:15]} O-O {[%emt 0:03:15]} 5. Bb2 {[%emt 0:00:02]} c5 {[%emt 0:05:06]} 6. c4 {[%emt 0:01:12]} Nc6 {[%emt 0:07:17]} 7. O-O {[%emt 0:00:24]} d6 {[%emt 0:01:08]} 8. Nc3 {[%emt 0:02:55]} Bd7 {[%emt 0:04:29]} 9. d4 {[%emt 0:01:09]} cxd4 {[%emt 0:07:59]} 10. Nxd4 {[%emt 0:00:46]} Nxd4 {[%emt 0:04:23]} 11. Qxd4 {[%emt 0:00:08]} Bc6 {[%emt 0:00:19]} 12. Bxc6 {[%emt 0:17:46]} bxc6 {[%emt 0:00:29]} 13. Rfd1 {[%emt 1:07:15]} Qa5 {[%emt 0:59:27]} 14. Qd2 {[%emt 0:00:30][%cal Oc3d5] Strongly threatening Nd5!} Qh5 {[%emt 0:00:30] A rather calm draw.   Weighted Error Value: White=0.09 (flawless) /Black=0.05 (flawless)} 1/2-1/2

[Event "British Championship 2024"]
[Site "Hull"]
[Date "2024.07.31"]
[Round "4.17"]
[White "Shafi, Declan"]
[Black "Motwani, Paul"]
[Result "0-1"]
[Annotator "TA"]
[ECO "A28"]
[WhiteElo "2222"]
[BlackElo "2414"]
[PlyCount "74"]
[EventDate "2024.07.31"]
[EventCountry "GBR"]
[SourceTitle "playchess.com"]
[Source "ChessBase"]
[SourceQuality "1"]
[TimeControl "40/5400+30:1800+30"]

{[%evp 9,74,0,4,-5,6,0,21,1,19,19,20,7,10,0,1,0,0,-14,-24,0,25,0,0,0,0,0,0,-67,-36,-121,-118,-148,-108,-314,-308,-294,-268,-403,-402,-464,-445,-489,-487,-566,-565,-567,-552,-553,-551,-593,-572,-629,-630,-697,-698,-752,-738,-843,-787,-853,-777,-856,-830,-938,-916,-877,-872]} 1. c4 {[%emt 0:00:02]} e5 {[%emt 0:00:12]} 2. Nc3 {[%emt 0:00:06]} Nf6 {[%emt 0:01:20]} 3. Nf3 {[%emt 0:00:38][%cal Bg1f3,Bf3d2,Bd2b3][%mdl 32]} Nc6 {[%emt 0:00:16]} 4. e4 {[%emt 0:00:23]} Bb4 {[%emt 0:02:39]} 5. d3 {[%emt 0:00:19]} d6 {[%emt 0:01:49]} 6. Be2 {[%emt 0:01:24]} Bg4 {[%emt 0:07:50]} 7. O-O {[%emt 0:02:25]} Bc5 {[%emt 0:05:11]} 8. Nd2 {[%emt 0:04:16] The position is equal.} (8. Nxe5 {with more complications.} Nxe5 9. d4 Bxe2 10. Nxe2 Nxe4 11. Qc2) 8... Qd7 {[%emt 0:05:55]} 9. Nb3 {[%emt 0:04:23]} Bxe2 {[%emt 0:08:03]} 10. Nxe2 {[%emt 0:01:42]} h5 {[%emt 0:06:10]} 11. Bg5 {[%emt 0:08:22]} h4 {[%emt 0:04:52]} 12. Bxf6 {[%emt 0:10:45]} gxf6 {[%emt 0:02:01]} 13. d4 {[%emt 0:00:58]} exd4 {[%emt 0:02:53]} 14. Nexd4 {[%emt 0:00:47]} Ne5 {[%emt 0:07:44]} 15. Nxc5 {[%emt 0:06:35]} dxc5 {[%emt 0:00:09]} 16. Nf5 {[%emt 0:00:20]} O-O-O {[%emt 0:02:54]} 17. Qxd7+ {[%emt 0:04:49]} Rxd7 {[%emt 0:00:21]} 18. Ne3 {[%emt 0:00:54]} ({White should play} 18. b3 $11) 18... h3 {[%emt 0:04:46] Black is more active.} 19. f4 {[%emt 0:07:33]} (19. Rad1 $15) 19... hxg2 $17 {[%emt 0:01:52]} 20. Rfd1 {[%emt 0:07:29]} Nd3 {[%emt 0:04:47]} 21. Nd5 $2 {[%emt 0:07:29] White does not recover from this.} (21. Rd2 $17 {was worth a try.} Nxf4 22. Rxd7 Kxd7 23. Rd1+ Ke6 24. Nd5) 21... Nxb2 $19 {[%emt 0:02:23]} 22. Rdc1 {[%emt 0:01:01]} f5 {[%emt 0:05:14]} 23. e5 {[%emt 0:11:21] [#]} (23. Rc2 $142 Nd3 24. exf5) 23... Nxc4 $1 {[%emt 0:04:20][%mdl 512]} 24. Rxc4 {[%emt 0:00:24]} (24. Ne7+ Rxe7) 24... Rxd5 {[%emt 0:00:07][%mdl 4096] Endgame. KRR-KRR. Black is clearly winning.} 25. Rac1 {[%emt 0:00:18]} b6 {[%emt 0:01:14]} 26. R1c2 {[%emt 0:00:13]} Rg8 {[%emt 0:01:14]} 27. Rc1 {[%emt 0:00:38] Inhibits Rd1+.} Kd7 {[%emt 0:03:11]} 28. R4c2 {[%emt 0:01:37]} Rd4 {[%emt 0:02:54]} 29. Rf2 {[%emt 0:00:23]} Rg4 {[%emt 0:01:19]} 30. h3 {[%emt 0:00:06]} Rg3 {[%emt 0:02:32]} 31. Rxg2 {[%emt 0:01:47]} Rxh3 {[%emt 0:01:01]} 32. Rf1 {[%emt 0:00:22]} Rh4 {[%emt 0:00:45]} 33. Rg8 {[%emt 0:00:59]} Rg4+ {[%emt 0:01:37]} 34. Rxg4 {[%emt 0:00:34]} fxg4 {[%emt 0:00:07]} 35. f5 {[%emt 0:00:25]} Re4 {[%emt 0:01:11]} 36. e6+ {[%emt 0:00:11]} fxe6 {[%emt 0:00:34]} 37. f6 {[%emt 0:00:05]} Ke8 {[%emt 0:00:13] Weighted Error Value: White=0.44/Black=0.10 (very precise) .  Loses game:     	White=1     	---        Mistake:       	White=3     	---        Inaccurate:     	---       	Black=1      OK:         	White=7     	Black=12     Best:        	---       	Black=2} 0-1

[Event "British Championship 2024"]
[Site "Hull"]
[Date "2024.07.31"]
[Round "4.19"]
[White "Czopor, Maciej"]
[Black "Southcott-Moyers, Indy"]
[Result "1-0"]
[Annotator "RC"]
[ECO "A14"]
[WhiteElo "2361"]
[BlackElo "2182"]
[PlyCount "151"]
[EventDate "2024.07.31"]
[EventCountry "GBR"]
[SourceTitle "playchess.com"]
[Source "ChessBase"]
[SourceQuality "1"]
[TimeControl "40/5400+30:1800+30"]

1. c4 {[%emt 0:00:04]} e6 {[%emt 0:00:36]} 2. Nf3 {[%emt 0:00:20]} d5 {[%emt 0:01:06]} 3. e3 {[%emt 0:00:04]} Nf6 {[%emt 0:00:57]} 4. b3 {[%emt 0:00:05]} Be7 {[%emt 0:05:50]} 5. Bb2 {[%emt 0:00:05]} O-O {[%emt 0:01:22]} 6. g3 {[%emt 0:00:12]} b6 {[%emt 0:09:56]} 7. Bg2 {[%emt 0:00:12]} Bb7 {[%emt 0:00:15]} 8. O-O {[%emt 0:00:18]} c5 {[%emt 0:02:19]} 9. Qe2 {[%emt 0:01:46]} Nc6 {[%emt 0:08:48]} 10. Rd1 {[%emt 0:08:25]} Qc7 {[%emt 0:03:41]} 11. Nc3 {[%emt 0:01:01]} Rad8 {[%emt 0:04:32]} 12. Rac1 {[%emt 0:07:34]} dxc4 {[%emt 0:01:28]} 13. bxc4 {[%emt 0:02:04]} Qb8 {[%emt 0:05:25]} 14. d3 {[%emt 0:03:03]} h6 {[%emt 0:01:32]} 15. Ba1 {[%emt 0:01:50]} Rd7 {[%emt 0:05:14]} 16. h3 {[%emt 0:03:49]} Rc8 {[%emt 0:04:14]} 17. Rb1 {[%emt 0:00:44]} Rdd8 {[%emt 0:02:13]} 18. Ne1 {[%emt 0:02:34]} Na5 {[%emt 0:03:02]} 19. f4 {[%emt 0:00:54]} Bxg2 {[%emt 0:01:50]} 20. Qxg2 {[%emt 0:01:03]} Qb7 {[%emt 0:02:26]} 21. Qxb7 {[%emt 0:01:05]} Nxb7 {[%emt 0:00:03]} 22. Nb5 {[%emt 0:00:05]} Ra8 {[%emt 0:01:17]} 23. Kf2 {[%emt 0:01:18]} Na5 {[%emt 0:01:14]} 24. Ke2 {[%emt 0:02:55]} Nc6 {[%emt 0:03:44]} 25. g4 {[%emt 0:03:44]} Ne8 {[%emt 0:08:29]} 26. Nf3 {[%emt 0:00:30]} f6 {[%emt 0:00:47]} 27. f5 {[%emt 0:03:47]} e5 {[%emt 0:02:24]} 28. Nc3 {[%emt 0:07:15]} Nc7 {[%emt 0:02:01]} 29. Nd2 {[%emt 0:00:08]} Rd7 {[%emt 0:00:37]} 30. Nde4 {[%emt 0:00:04]} Rad8 {[%emt 0:01:24]} 31. a3 {[%emt 0:00:27]} Kf7 {[%emt 0:01:12]} 32. Nf2 {[%emt 0:00:18]} Rh8 {[%emt 0:01:08]} 33. Nce4 {[%emt 0:01:17]} Ne8 {[%emt 0:02:51]} 34. Rg1 {[%emt 0:01:33]} Nd6 {[%emt 0:01:10]} 35. Nc3 {[%emt 0:04:06]} Rdd8 {[%emt 0:00:40]} 36. Nd5 {[%emt 0:03:40]} h5 {[%emt 0:01:28]} 37. Rg2 {[%emt 0:03:56]} Rb8 {[%emt 0:00:54]} 38. a4 {[%emt 0:11:39]} Nb4 {[%emt 0:03:05]} 39. Nc3 {[%emt 0:13:25]} a6 {[%emt 0:00:50]} 40. Nfe4 {[%emt 0:00:06]} Nxe4 {[%emt 0:01:06]} 41. Nxe4 {[%emt 0:30:36]} hxg4 {[%emt 0:36:23]} 42. hxg4 {[%emt 0:00:02]} b5 {[%emt 0:00:00]} 43. axb5 {[%emt 0:00:00]} axb5 {[%emt 0:00:00]} 44. Bc3 {[%emt 0:00:00]} bxc4 {[%emt 0:00:00]} 45. dxc4 {[%emt 0:00:00]} Ra8 {[%emt 0:00:00]} 46. g5 {[%emt 0:00:00]} Ra2+ {[%emt 0:00:00]} 47. Rb2 {[%emt 0:00:00]} Rxb2+ {[%emt 0:00:00]} 48. Bxb2 {[%emt 0:00:00]} fxg5 {[%emt 0:00:00]} 49. Bxe5 {[%emt 0:00:00]} Rh5 {[%emt 0:00:00]} 50. Kf3 {[%emt 0:00:00]} Nc6 {[%emt 0:00:00]} 51. Bg3 {[%emt 0:00:00]} g6 {[%emt 0:00:00]} 52. fxg6+ {[%emt 0:00:00]} Kxg6 {[%emt 0:00:00]} 53. Rd2 {[%emt 0:00:00]} Na5 {[%emt 0:02:39]} 54. Rd7 {[%emt 0:00:00]} Rh7 {[%emt 0:00:20]} 55. Nd2 {[%emt 0:00:00]} Kf5 {[%emt 0:01:15]} 56. e4+ {[%emt 0:03:31]} Ke6 {[%emt 0:00:17]} 57. Ra7 {[%emt 0:00:10]} Nc6 {[%emt 0:00:07]} 58. Ra6 {[%emt 0:00:03]} Kd7 {[%emt 0:00:09]} 59. e5 {[%emt 0:01:00]} Rh6 {[%emt 0:01:36]} 60. Ke4 {[%emt 0:00:42]} Re6 {[%emt 0:01:41]} 61. Nb3 {[%emt 0:06:03]} Ke8 {[%emt 0:01:46]} 62. Ra2 {[%emt 0:04:41]} Rh6 {[%emt 0:00:59]} 63. Kf5 {[%emt 0:01:32]} Rh3 {[%emt 0:00:35]} 64. Ra8+ {[%emt 0:00:01]} Nd8 {[%emt 0:00:25]} 65. Kg4 {[%emt 0:00:01]} Rh6 {[%emt 0:00:32]} 66. Nd2 {[%emt 0:00:29]} Rb6 {[%emt 0:00:43]} 67. Ne4 {[%emt 0:00:28]} Rb4 {[%emt 0:00:27]} 68. Kf5 {[%emt 0:00:52]} Rxc4 {[%emt 0:00:32]} 69. e6 {[%emt 0:00:05]} Rd4 {[%emt 0:00:20]} 70. Be5 {[%emt 0:04:56]} Rd1 {[%emt 0:00:43]} 71. Nf6+ {[%emt 0:00:15]} Kf8 {[%emt 0:00:05]} 72. Nd7+ {[%emt 0:00:48]} Ke8 {[%emt 0:00:16]} 73. Nf6+ {[%emt 0:00:18]} Kf8 {[%emt 0:00:01]} 74. Kg6 {[%emt 0:00:22]} Re1 {[%emt 0:00:36]} 75. Bd6 {[%emt 0:00:20]} Rxe6 {[%emt 0:00:40]} 76. Rxd8# {[%emt 0:00:05]} 1-0

[Event "British Championship 2024"]
[Site "Hull"]
[Date "2024.07.31"]
[Round "4.20"]
[White "Brewer, Callum D"]
[Black "Ledger, Andrew J"]
[Result "0-1"]
[Annotator "RC"]
[ECO "B12"]
[WhiteElo "2161"]
[BlackElo "2334"]
[PlyCount "144"]
[EventDate "2024.07.31"]
[EventCountry "GBR"]
[SourceTitle "playchess.com"]
[Source "ChessBase"]
[SourceQuality "1"]
[TimeControl "40/5400+30:1800+30"]

1. e4 {[%emt 0:00:03]} c6 {[%emt 0:00:08]} 2. d4 {[%emt 0:00:05]} d5 {[%emt 0:00:05]} 3. f3 {[%emt 0:00:18]} e6 {[%emt 0:00:46]} 4. Nc3 {[%emt 0:00:05]} Qb6 {[%emt 0:00:37]} 5. a3 {[%emt 0:00:51]} Nd7 {[%emt 0:01:26]} 6. Be3 {[%emt 0:03:24]} Ngf6 {[%emt 0:03:06]} 7. Be2 {[%emt 0:18:34]} Be7 {[%emt 0:05:59]} 8. e5 {[%emt 0:03:44]} Ng8 {[%emt 0:02:27]} 9. f4 {[%emt 0:07:59]} Nh6 {[%emt 0:11:18]} 10. Nf3 {[%emt 0:03:07]} O-O {[%emt 0:10:38]} 11. h3 {[%emt 0:00:50]} Nf5 {[%emt 0:03:56]} 12. Bf2 {[%emt 0:00:11]} c5 {[%emt 0:00:11]} 13. O-O {[%emt 0:18:09]} cxd4 {[%emt 0:05:47]} 14. Nxd4 {[%emt 0:01:12]} Nxd4 {[%emt 0:00:14]} 15. Bxd4 {[%emt 0:00:15]} Bc5 {[%emt 0:00:11]} 16. Bxc5 {[%emt 0:02:07]} Nxc5 {[%emt 0:04:18]} 17. Qd4 {[%emt 0:08:22]} Bd7 {[%emt 0:03:16]} 18. Rad1 {[%emt 0:03:03]} Rfc8 {[%emt 0:12:34]} 19. f5 {[%emt 0:05:07]} Na4 {[%emt 0:03:36]} 20. Nxa4 {[%emt 0:05:21]} Bxa4 {[%emt 0:00:06]} 21. b3 {[%emt 0:01:12]} Rxc2 {[%emt 0:12:37]} 22. Qxb6 {[%emt 0:04:37]} axb6 {[%emt 0:00:04]} 23. Bd3 {[%emt 0:02:22]} Bxb3 {[%emt 0:00:07]} 24. fxe6 {[%emt 0:02:28]} Rc6 {[%emt 0:13:33]} 25. Rb1 {[%emt 0:05:07]} Bc4 {[%emt 0:00:31]} 26. Bxc4 {[%emt 0:00:40]} dxc4 {[%emt 0:00:05]} 27. Rxf7 {[%emt 0:02:48]} c3 {[%emt 0:02:18]} 28. Rf3 {[%emt 0:01:19]} Rxa3 {[%emt 0:03:27]} 29. e7 {[%emt 0:00:05]} Ra8 {[%emt 0:00:07]} 30. Rbf1 {[%emt 0:01:00]} Rcc8 {[%emt 0:00:18]} 31. Rc1 {[%emt 0:00:01]} c2 {[%emt 0:00:43]} 32. Rf2 {[%emt 0:00:11]} Re8 {[%emt 0:01:10]} 33. Rfxc2 {[%emt 0:01:32]} Rxe7 {[%emt 0:00:04]} 34. Rb2 {[%emt 0:00:43]} Ra6 {[%emt 0:00:49]} 35. Rb5 {[%emt 0:00:05]} Kf7 {[%emt 0:00:19]} 36. Rd1 {[%emt 0:00:25]} Ra5 {[%emt 0:00:46]} 37. Rxb6 {[%emt 0:00:37]} Raxe5 {[%emt 0:00:05]} 38. Kh2 {[%emt 0:00:23]} R5e6 {[%emt 0:00:31]} 39. Rb5 {[%emt 0:00:37]} b6 {[%emt 0:00:08]} 40. Rdb1 {[%emt 0:00:44]} Rb7 {[%emt 0:00:05]} 41. R1b3 {[%emt 0:12:16]} Ke7 {[%emt 0:00:18]} 42. g4 {[%emt 0:00:41]} Kd7 {[%emt 0:00:44]} 43. Rh5 {[%emt 0:04:04]} h6 {[%emt 0:00:09]} 44. Rf5 {[%emt 0:00:08]} Rc7 {[%emt 0:03:34]} 45. Kg3 {[%emt 0:03:08]} Kc8 {[%emt 0:01:58]} 46. h4 {[%emt 0:04:38]} Kb7 {[%emt 0:00:15]} 47. g5 {[%emt 0:00:09]} hxg5 {[%emt 0:04:24]} 48. hxg5 {[%emt 0:00:02]} Rec6 {[%emt 0:00:59]} 49. Kg4 {[%emt 0:02:02]} g6 {[%emt 0:06:17]} 50. Rf6 {[%emt 0:00:38]} Rc4+ {[%emt 0:00:25]} 51. Kg3 {[%emt 0:02:58]} R7c6 {[%emt 0:00:38]} 52. Rb1 {[%emt 0:03:15]} R4c5 {[%emt 0:01:11]} 53. Rf7+ {[%emt 0:01:05]} Rc7 {[%emt 0:03:30]} 54. Rf6 {[%emt 0:01:10]} Rxg5+ {[%emt 0:02:38]} 55. Kf4 {[%emt 0:00:01]} Rf5+ {[%emt 0:00:12]} 56. Rxf5 {[%emt 0:00:02]} Rc4+ {[%emt 0:00:15]} 57. Kg5 {[%emt 0:00:11]} gxf5 {[%emt 0:00:04]} 58. Kxf5 {[%emt 0:00:06]} Kc6 {[%emt 0:00:08]} 59. Ke5 {[%emt 0:00:23]} Kc5 {[%emt 0:00:05]} 60. Rh1 {[%emt 0:00:41]} b5 {[%emt 0:00:20]} 61. Rh8 {[%emt 0:00:14]} Kb4 {[%emt 0:00:19]} 62. Kd5 {[%emt 0:00:21]} Kb3 {[%emt 0:00:42]} 63. Rh3+ {[%emt 0:01:26]} Rc3 {[%emt 0:00:07]} 64. Rh2 {[%emt 0:00:10]} b4 {[%emt 0:00:13]} 65. Kd4 {[%emt 0:00:01]} Rc2 {[%emt 0:00:30]} 66. Rh8 {[%emt 0:00:16]} Kb2 {[%emt 0:00:20]} 67. Kd3 {[%emt 0:00:02]} b3 {[%emt 0:00:07]} 68. Rb8 {[%emt 0:00:04]} Rc7 {[%emt 0:01:09]} 69. Rb6 {[%emt 0:00:09]} Rd7+ {[%emt 0:01:07]} 70. Kc4 {[%emt 0:00:38]} Kc2 {[%emt 0:00:05]} 71. Rh6 {[%emt 0:00:37]} b2 {[%emt 0:00:13]} 72. Rh2+ {[%emt 0:00:04]} Rd2 {[%emt 0:00:05]} 0-1

[Event "British Championship 2024"]
[Site "Hull"]
[Date "2024.07.31"]
[Round "4.21"]
[White "Wu, Li"]
[Black "Kanyamarala, Trisha"]
[Result "0-1"]
[Annotator "RC"]
[ECO "D02"]
[WhiteElo "2328"]
[BlackElo "2219"]
[PlyCount "58"]
[EventDate "2024.07.31"]
[EventCountry "GBR"]
[SourceTitle "playchess.com"]
[Source "ChessBase"]
[SourceQuality "1"]
[TimeControl "40/5400+30:1800+30"]

1. Nf3 {[%emt 0:00:04]} d5 {[%emt 0:00:12]} 2. g3 {[%emt 0:00:16]} Nc6 {[%emt 0:00:14]} 3. d4 {[%emt 0:00:16]} Bf5 {[%emt 0:00:11]} 4. a3 {[%emt 0:02:45]} Nf6 {[%emt 0:03:30]} 5. Bg2 {[%emt 0:00:31]} e6 {[%emt 0:03:19]} 6. O-O {[%emt 0:02:55]} h6 {[%emt 0:02:04]} 7. c4 {[%emt 0:10:44]} Be7 {[%emt 0:02:23]} 8. cxd5 {[%emt 0:02:51]} exd5 {[%emt 0:00:45]} 9. b4 {[%emt 0:02:51]} a6 {[%emt 0:03:51]} 10. Bb2 {[%emt 0:06:35]} O-O {[%emt 0:02:41]} 11. Ne5 {[%emt 0:01:27]} Na7 {[%emt 0:14:59]} 12. f3 {[%emt 0:17:20]} c6 {[%emt 0:05:23]} 13. Nd2 {[%emt 0:01:48]} a5 {[%emt 0:03:57]} 14. e4 {[%emt 0:00:55]} Be6 {[%emt 0:05:13]} 15. Nd3 {[%emt 0:00:05]} dxe4 {[%emt 0:02:34]} 16. fxe4 {[%emt 0:00:03]} Nb5 {[%emt 0:01:04]} 17. Nf4 {[%emt 0:05:25]} Bg4 {[%emt 0:17:55]} 18. Qe1 {[%emt 0:00:18]} Nxd4 {[%emt 0:10:17]} 19. Qf2 {[%emt 0:00:21]} Ne2+ {[%emt 0:01:57]} 20. Nxe2 {[%emt 0:13:34]} Qxd2 {[%emt 0:00:06]} 21. Bxf6 {[%emt 0:00:08]} Bxf6 {[%emt 0:00:53]} 22. Rae1 {[%emt 0:00:12]} axb4 {[%emt 0:01:27]} 23. h3 {[%emt 0:00:05]} Bxe2 {[%emt 0:02:42]} 24. Rxe2 {[%emt 0:00:06]} Qc3 {[%emt 0:00:29]} 25. e5 {[%emt 0:00:55]} Bxe5 {[%emt 0:01:04]} 26. Qf5 {[%emt 0:00:10]} Ra5 {[%emt 0:04:08]} 27. Kh1 {[%emt 0:07:14]} Qxg3 {[%emt 0:01:53]} 28. Bf3 {[%emt 0:00:49]} Bc7 {[%emt 0:03:32]} 29. Qd7 {[%emt 0:01:13]} Qd6 {[%emt 0:02:34]} 0-1